[Event "*** Titled Tuesday Blitz"]
[Site "Chess.com"]
[Date "2021.04.06"]
[Round "2"]
[White "Nicolas_Chess10"]
[Black "mariofs"]
[Result "1-0"]
[WhiteElo "2447"]
[BlackElo "2225"]
[TimeControl "180+1"]
[EndTime "10:16:30 PDT"]
[Termination "Nicolas_Chess10 won by resignation"]

1. d4 {[%clk 0:03:00.9]} 1... d5 {[%clk 0:02:59.7]} 2. c4 {[%clk 0:03:00.9]}
2... c6 {[%clk 0:02:59.5]} 3. Nc3 {[%clk 0:03:01.3]} 3... Nf6 {[%clk 0:02:59.8]}
4. e3 {[%clk 0:03:01.7]} 4... g6 {[%clk 0:02:59.5]} 5. Nf3 {[%clk 0:03:01.4]}
5... Bg7 {[%clk 0:02:59.9]} 6. Be2 {[%clk 0:03:02]} 6... O-O {[%clk 0:03:00.5]}
7. O-O {[%clk 0:03:02.4]} 7... e6 {[%clk 0:03:00.3]} 8. Bd2 {[%clk 0:02:54.2]}
8... Re8 {[%clk 0:02:59.6]} 9. Rc1 {[%clk 0:02:38.6]} 9... Nbd7 {[%clk
0:02:59.2]} 10. b4 {[%clk 0:02:29.7]} 10... a6 {[%clk 0:02:54.2]} 11. a4 {[%clk
0:02:27.6]} 11... Qb6 {[%clk 0:02:41.8]} 12. Qb3 {[%clk 0:02:24.7]} 12... h6
{[%clk 0:02:31]} 13. b5 {[%clk 0:02:14]} 13... axb5 {[%clk 0:02:31.9]} 14. axb5
{[%clk 0:02:05]} 14... Ne4 {[%clk 0:02:10.9]} 15. Rfd1 {[%clk 0:01:38.3]} 15...
Nxd2 {[%clk 0:01:50.1]} 16. Nxd2 {[%clk 0:01:36.6]} 16... dxc4 {[%clk
0:01:48.1]} 17. Nxc4 {[%clk 0:01:34.7]} 17... Qc7 {[%clk 0:01:47.2]} 18. Ne4
{[%clk 0:01:28.2]} 18... e5 {[%clk 0:01:38.9]} 19. Ned6 {[%clk 0:01:16.7]} 19...
Re6 {[%clk 0:01:38.5]} 20. Nxc8 {[%clk 0:01:13.7]} 20... Rxc8 {[%clk 0:01:37.9]}
21. dxe5 {[%clk 0:01:03.2]} 21... Nxe5 {[%clk 0:01:37.5]} 22. Nxe5 {[%clk
0:01:02.9]} 22... Bxe5 {[%clk 0:01:37.1]} 23. g3 {[%clk 0:01:03.3]} 23... Rd8
{[%clk 0:01:32.5]} 24. Rxd8+ {[%clk 0:00:58.3]} 24... Qxd8 {[%clk 0:01:33.4]}
25. Bc4 {[%clk 0:00:58.9]} 25... Re7 {[%clk 0:01:30.4]} 26. bxc6 {[%clk
0:00:58.1]} 26... bxc6 {[%clk 0:01:30.1]} 27. Rd1 {[%clk 0:00:57.3]} 27... Qb8
{[%clk 0:01:23.8]} 28. Qxb8+ {[%clk 0:00:55.2]} 28... Bxb8 {[%clk 0:01:23.3]}
29. Rd8+ {[%clk 0:00:55.9]} 29... Kg7 {[%clk 0:01:22.3]} 30. Rxb8 {[%clk
0:00:56.2]} 30... Re4 {[%clk 0:01:21.3]} 31. Be2 {[%clk 0:00:53.1]} 31... h5
{[%clk 0:01:19.7]} 32. Rc8 {[%clk 0:00:52.8]} 32... Re6 {[%clk 0:01:17.3]} 33.
Bf3 {[%clk 0:00:52.5]} 1-0

[Event "*** Titled Tuesday Blitz"]
[Site "Chess.com"]
[Date "2021.04.06"]
[Round "2"]
[White "Nils_03"]
[Black "morte-negra"]
[Result "1-0"]
[WhiteElo "2365"]
[BlackElo "1939"]
[TimeControl "180+1"]
[EndTime "10:16:38 PDT"]
[Termination "Nils_03 won by resignation"]

1. d4 {[%clk 0:03:00.9]} 1... Nf6 {[%clk 0:02:58.6]} 2. c4 {[%clk 0:03:01.2]}
2... c5 {[%clk 0:02:57.9]} 3. d5 {[%clk 0:02:59.8]} 3... e6 {[%clk 0:02:58.2]}
4. Nc3 {[%clk 0:02:57.7]} 4... exd5 {[%clk 0:02:58]} 5. cxd5 {[%clk 0:02:58.6]}
5... d6 {[%clk 0:02:57.6]} 6. e4 {[%clk 0:02:58.2]} 6... g6 {[%clk 0:02:57.2]}
7. f4 {[%clk 0:02:58.1]} 7... Bg7 {[%clk 0:02:53.6]} 8. Bb5+ {[%clk 0:02:58.5]}
8... Nfd7 {[%clk 0:02:51]} 9. a4 {[%clk 0:02:58.1]} 9... a6 {[%clk 0:02:50.7]}
10. Bd3 {[%clk 0:02:56.9]} 10... O-O {[%clk 0:02:50]} 11. Nf3 {[%clk 0:02:56.7]}
11... Re8 {[%clk 0:02:47.9]} 12. O-O {[%clk 0:02:56.4]} 12... Nf6 {[%clk
0:02:44.9]} 13. Re1 {[%clk 0:02:52.4]} 13... Nbd7 {[%clk 0:02:43.1]} 14. e5
{[%clk 0:02:46]} 14... dxe5 {[%clk 0:02:42.1]} 15. fxe5 {[%clk 0:02:46.9]} 15...
Ng4 {[%clk 0:02:40.5]} 16. Bg5 {[%clk 0:02:34]} 16... Qb6 {[%clk 0:02:34.1]} 17.
a5 {[%clk 0:02:12.2]} 17... Qa7 {[%clk 0:02:29.9]} 18. Bc4 {[%clk 0:01:55.4]}
18... Ngxe5 {[%clk 0:02:25.9]} 19. d6 {[%clk 0:01:48.2]} 19... b5 {[%clk
0:02:18.8]} 20. axb6 {[%clk 0:01:39]} 20... Qxb6 {[%clk 0:02:18.6]} 21. Nd5
{[%clk 0:01:29.9]} 21... Qxb2 {[%clk 0:01:49.2]} 22. Rb1 {[%clk 0:01:28.6]}
22... Nxf3+ {[%clk 0:01:29]} 23. Qxf3 {[%clk 0:01:29.5]} 23... Rxe1+ {[%clk
0:01:27.6]} 24. Rxe1 {[%clk 0:01:30.4]} 24... Qd4+ {[%clk 0:01:07.8]} 25. Ne3
{[%clk 0:01:05.2]} 25... Rb8 {[%clk 0:00:56.7]} 26. Qxf7+ {[%clk 0:01:03.8]} 1-0

[Event "*** Titled Tuesday Blitz"]
[Site "Chess.com"]
[Date "2021.04.06"]
[Round "2"]
[White "ChainsOfFantasia"]
[Black "BAS8892"]
[Result "0-1"]
[WhiteElo "2431"]
[BlackElo "2663"]
[TimeControl "180+1"]
[EndTime "10:16:40 PDT"]
[Termination "BAS8892 won by resignation"]

1. d4 {[%clk 0:03:00.9]} 1... d5 {[%clk 0:02:59.9]} 2. Nf3 {[%clk 0:02:58.7]}
2... Nf6 {[%clk 0:02:59.5]} 3. c4 {[%clk 0:02:59]} 3... c6 {[%clk 0:02:59.3]} 4.
Nc3 {[%clk 0:02:58.9]} 4... dxc4 {[%clk 0:02:56.7]} 5. a4 {[%clk 0:02:56.1]}
5... Bf5 {[%clk 0:02:56.7]} 6. Ne5 {[%clk 0:02:56.2]} 6... Nbd7 {[%clk
0:02:54.7]} 7. Nxc4 {[%clk 0:02:56.1]} 7... Qc7 {[%clk 0:02:54.5]} 8. Qd2 {[%clk
0:02:49.3]} 8... g6 {[%clk 0:02:50]} 9. Qf4 {[%clk 0:02:42.5]} 9... Qxf4 {[%clk
0:02:47.2]} 10. Bxf4 {[%clk 0:02:43.4]} 10... Bg7 {[%clk 0:02:47.1]} 11. e3
{[%clk 0:02:28.3]} 11... Nd5 {[%clk 0:02:45.1]} 12. Nxd5 {[%clk 0:01:57.5]}
12... cxd5 {[%clk 0:02:45.1]} 13. Na5 {[%clk 0:01:57.5]} 13... e5 {[%clk
0:02:38.7]} 14. dxe5 {[%clk 0:01:53.4]} 14... Nxe5 {[%clk 0:02:38.7]} 15. Bb5+
{[%clk 0:01:49.6]} 15... Ke7 {[%clk 0:02:36.2]} 16. Nxb7 {[%clk 0:01:22.8]}
16... a6 {[%clk 0:02:35.2]} 17. Be2 {[%clk 0:01:15.9]} 17... Rhb8 {[%clk
0:02:31]} 18. Na5 {[%clk 0:01:02.5]} 18... Rxb2 {[%clk 0:02:30.6]} 19. Bxe5
{[%clk 0:00:58.5]} 19... Bxe5 {[%clk 0:02:29.9]} 20. Nc6+ {[%clk 0:00:58.9]}
20... Kd6 {[%clk 0:02:30.1]} 21. Nxe5 {[%clk 0:00:59.8]} 21... Kxe5 {[%clk
0:02:30.3]} 22. f4+ {[%clk 0:00:24.3]} 22... Kd6 {[%clk 0:02:29.6]} 23. Kf2
{[%clk 0:00:23.9]} 23... a5 {[%clk 0:02:25.3]} 24. Rhe1 {[%clk 0:00:20.8]} 24...
Rc8 {[%clk 0:02:24.1]} 25. Kg3 {[%clk 0:00:16.9]} 25... Be4 {[%clk 0:02:21.7]}
26. Bf3 {[%clk 0:00:16.8]} 26... f5 {[%clk 0:02:19.6]} 27. Rac1 {[%clk
0:00:15.6]} 27... Rcc2 {[%clk 0:02:17.7]} 28. Rxc2 {[%clk 0:00:15.3]} 28... Bxc2
{[%clk 0:02:17.1]} 29. Re2 {[%clk 0:00:13]} 29... Ra2 {[%clk 0:02:17]} 30. Rd2
{[%clk 0:00:12.7]} 30... Bb3 {[%clk 0:02:16.1]} 31. Rd3 {[%clk 0:00:12.8]} 31...
Bc4 {[%clk 0:02:14.8]} 32. Rd1 {[%clk 0:00:11.5]} 32... Rxa4 {[%clk 0:02:14.4]}
33. h4 {[%clk 0:00:11.5]} 33... Ra3 {[%clk 0:02:14.5]} 34. h5 {[%clk 0:00:11.6]}
34... a4 {[%clk 0:02:14]} 35. hxg6 {[%clk 0:00:12.5]} 35... hxg6 {[%clk
0:02:13.7]} 36. Kh4 {[%clk 0:00:13.4]} 36... Rxe3 {[%clk 0:02:13.5]} 37. Kg5
{[%clk 0:00:14.3]} 37... Re6 {[%clk 0:02:12.7]} 38. Rb1 {[%clk 0:00:10.8]} 38...
Kc5 {[%clk 0:02:12.2]} 0-1

[Event "*** Titled Tuesday Blitz"]
[Site "Chess.com"]
[Date "2021.04.06"]
[Round "2"]
[White "yandry1996"]
[Black "Grandmaster1369"]
[Result "1-0"]
[WhiteElo "2245"]
[BlackElo "2434"]
[TimeControl "180+1"]
[EndTime "10:16:40 PDT"]
[Termination "yandry1996 won by resignation"]

1. e4 {[%clk 0:03:00.9]} 1... c5 {[%clk 0:02:59.8]} 2. Nf3 {[%clk 0:02:53.6]}
2... d6 {[%clk 0:02:59.6]} 3. d4 {[%clk 0:02:52.5]} 3... cxd4 {[%clk 0:03:00.5]}
4. Nxd4 {[%clk 0:02:52]} 4... Nf6 {[%clk 0:03:01.2]} 5. Nc3 {[%clk 0:02:49.2]}
5... a6 {[%clk 0:03:01.5]} 6. f3 {[%clk 0:02:49.1]} 6... e5 {[%clk 0:02:59.1]}
7. Nb3 {[%clk 0:02:49]} 7... Be6 {[%clk 0:02:58.5]} 8. Be3 {[%clk 0:02:49.4]}
8... Be7 {[%clk 0:02:57.9]} 9. Qd2 {[%clk 0:02:49.8]} 9... h5 {[%clk 0:02:54.8]}
10. O-O-O {[%clk 0:02:49.5]} 10... Nbd7 {[%clk 0:02:51.2]} 11. Kb1 {[%clk
0:02:48.9]} 11... Rc8 {[%clk 0:02:50.1]} 12. Qf2 {[%clk 0:02:19.4]} 12... b5
{[%clk 0:02:46.8]} 13. Nd5 {[%clk 0:02:14.6]} 13... Nxd5 {[%clk 0:02:46]} 14.
exd5 {[%clk 0:02:15.5]} 14... Bf5 {[%clk 0:02:46.7]} 15. Bd3 {[%clk 0:02:15.6]}
15... Bxd3 {[%clk 0:02:44.9]} 16. Rxd3 {[%clk 0:02:16.5]} 16... Bg5 {[%clk
0:02:39.1]} 17. f4 {[%clk 0:02:11.3]} 17... exf4 {[%clk 0:02:36.6]} 18. Bxf4
{[%clk 0:02:10.6]} 18... Bxf4 {[%clk 0:02:36.8]} 19. Qxf4 {[%clk 0:02:09.9]}
19... Ne5 {[%clk 0:02:33.7]} 20. Rg3 {[%clk 0:01:58]} 20... Rc4 {[%clk
0:02:22.1]} 21. Qf5 {[%clk 0:01:37.4]} 21... g6 {[%clk 0:02:11.3]} 22. Qf2
{[%clk 0:01:34.6]} 22... Qh4 {[%clk 0:02:04.3]} 23. Qa7 {[%clk 0:01:12.9]} 23...
O-O {[%clk 0:01:44.3]} 24. Qxa6 {[%clk 0:01:13.1]} 24... Qe4 {[%clk 0:01:43.9]}
25. Rc1 {[%clk 0:01:06.5]} 25... Rfc8 {[%clk 0:01:35.1]} 26. Nd2 {[%clk
0:00:59.5]} 26... Rxc2 {[%clk 0:01:33.3]} 27. Qxc8+ {[%clk 0:00:58.8]} 27...
Rxc8+ {[%clk 0:01:28]} 28. Nxe4 {[%clk 0:00:59]} 28... Rd8 {[%clk 0:01:27.3]}
29. Rb3 {[%clk 0:00:51.9]} 29... f5 {[%clk 0:01:26.1]} 30. Ng5 {[%clk
0:00:50.9]} 30... Rb8 {[%clk 0:01:20.2]} 31. Rc7 {[%clk 0:00:50.7]} 31... Nc4
{[%clk 0:01:19.6]} 32. Rxc4 {[%clk 0:00:49.8]} 1-0

[Event "*** Titled Tuesday Blitz"]
[Site "Chess.com"]
[Date "2021.04.06"]
[Round "2"]
[White "Goryachkina"]
[Black "McCarthyStone"]
[Result "1/2-1/2"]
[WhiteElo "2632"]
[BlackElo "2405"]
[TimeControl "180+1"]
[EndTime "10:16:44 PDT"]
[Termination "Game drawn by agreement"]

1. e4 {[%clk 0:03:00]} 1... d6 {[%clk 0:03:00.2]} 2. d4 {[%clk 0:02:59.7]} 2...
Nf6 {[%clk 0:03:00.9]} 3. Nc3 {[%clk 0:02:59.4]} 3... Nc6 {[%clk 0:03:01.6]} 4.
h3 {[%clk 0:02:51.7]} 4... a6 {[%clk 0:02:57.4]} 5. Nf3 {[%clk 0:02:51.1]} 5...
e5 {[%clk 0:02:45.1]} 6. Be3 {[%clk 0:02:35]} 6... exd4 {[%clk 0:02:36.3]} 7.
Nxd4 {[%clk 0:02:34.4]} 7... Bd7 {[%clk 0:02:32.5]} 8. Bd3 {[%clk 0:02:25.5]}
8... Be7 {[%clk 0:02:32.3]} 9. O-O {[%clk 0:02:25.1]} 9... O-O {[%clk
0:02:32.3]} 10. Re1 {[%clk 0:02:21.5]} 10... Re8 {[%clk 0:02:32]} 11. Qd2 {[%clk
0:02:02.7]} 11... Bf8 {[%clk 0:02:28.7]} 12. Rad1 {[%clk 0:02:00.1]} 12... b5
{[%clk 0:02:20]} 13. a3 {[%clk 0:01:58.6]} 13... Nxd4 {[%clk 0:02:16.8]} 14.
Bxd4 {[%clk 0:01:57.7]} 14... c5 {[%clk 0:02:17.5]} 15. Bxf6 {[%clk 0:01:42.5]}
15... Qxf6 {[%clk 0:02:18.4]} 16. Nd5 {[%clk 0:01:34.6]} 16... Qd8 {[%clk
0:02:10]} 17. c4 {[%clk 0:01:23.3]} 17... Bc6 {[%clk 0:02:07.9]} 18. b4 {[%clk
0:01:19]} 18... Bxd5 {[%clk 0:01:53.1]} 19. exd5 {[%clk 0:01:17.8]} 19... bxc4
{[%clk 0:01:45.1]} 20. Bxc4 {[%clk 0:01:16.4]} 20... cxb4 {[%clk 0:01:45.6]} 21.
axb4 {[%clk 0:01:13.4]} 21... Qb6 {[%clk 0:01:44.5]} 22. Rxe8 {[%clk 0:00:58.5]}
22... Rxe8 {[%clk 0:01:45.4]} 23. Ra1 {[%clk 0:00:47]} 23... Rb8 {[%clk
0:01:30.3]} 24. Ra4 {[%clk 0:00:46.5]} 24... Ra8 {[%clk 0:01:14.7]} 25. Qe2
{[%clk 0:00:43.5]} 25... a5 {[%clk 0:01:10.8]} 1/2-1/2

[Event "*** Titled Tuesday Blitz"]
[Site "Chess.com"]
[Date "2021.04.06"]
[Round "2"]
[White "dennisodessa"]
[Black "Harry_Rakkel"]
[Result "0-1"]
[WhiteElo "2315"]
[BlackElo "2591"]
[TimeControl "180+1"]
[EndTime "10:16:44 PDT"]
[Termination "Harry_Rakkel won on time"]

1. d4 {[%clk 0:02:01.1]} 1... Nf6 {[%clk 0:02:57.7]} 2. c4 {[%clk 0:02:01.7]}
2... e6 {[%clk 0:02:57.3]} 3. Nc3 {[%clk 0:02:01.5]} 3... Bb4 {[%clk 0:02:56.4]}
4. Qc2 {[%clk 0:02:01.1]} 4... O-O {[%clk 0:02:48.1]} 5. a3 {[%clk 0:02:00.9]}
5... Bxc3+ {[%clk 0:02:47.5]} 6. Qxc3 {[%clk 0:02:01.8]} 6... d6 {[%clk
0:02:46.2]} 7. Bg5 {[%clk 0:02:02]} 7... Nbd7 {[%clk 0:02:45.7]} 8. Nf3 {[%clk
0:02:02]} 8... h6 {[%clk 0:02:45.3]} 9. Bh4 {[%clk 0:02:01.9]} 9... b6 {[%clk
0:02:45.1]} 10. e3 {[%clk 0:02:00.1]} 10... Bb7 {[%clk 0:02:45]} 11. Bd3 {[%clk
0:02:00.6]} 11... Qe7 {[%clk 0:02:44.3]} 12. O-O {[%clk 0:02:00.3]} 12... c5
{[%clk 0:02:42.6]} 13. Rfe1 {[%clk 0:01:56.4]} 13... Bxf3 {[%clk 0:02:38.6]} 14.
gxf3 {[%clk 0:01:55.6]} 14... Rac8 {[%clk 0:02:38.3]} 15. Rac1 {[%clk
0:01:47.9]} 15... Rc7 {[%clk 0:02:35.9]} 16. Bb1 {[%clk 0:01:34.1]} 16... Rfc8
{[%clk 0:02:34.9]} 17. Qd3 {[%clk 0:01:28.8]} 17... Nf8 {[%clk 0:02:31.3]} 18.
Kh1 {[%clk 0:01:26.2]} 18... Ng6 {[%clk 0:02:20.9]} 19. Bg3 {[%clk 0:01:21.8]}
19... cxd4 {[%clk 0:02:20]} 20. Qxd4 {[%clk 0:01:22.5]} 20... e5 {[%clk
0:02:18.7]} 21. Qd3 {[%clk 0:01:15.4]} 21... Qe6 {[%clk 0:02:14.1]} 22. b3
{[%clk 0:01:04.3]} 22... b5 {[%clk 0:02:11.2]} 23. Qf5 {[%clk 0:01:01.6]} 23...
Nf8 {[%clk 0:01:58.7]} 24. Bd3 {[%clk 0:00:59.2]} 24... bxc4 {[%clk 0:01:56.3]}
25. Qxe6 {[%clk 0:00:59.5]} 25... Nxe6 {[%clk 0:01:56]} 26. Bxc4 {[%clk
0:01:00]} 26... d5 {[%clk 0:01:55.1]} 27. Bxe5 {[%clk 0:00:59.9]} 27... Rc6
{[%clk 0:01:53.3]} 28. Rg1 {[%clk 0:00:43.9]} 28... Kf8 {[%clk 0:01:52.4]} 0-1

[Event "*** Titled Tuesday Blitz"]
[Site "Chess.com"]
[Date "2021.04.06"]
[Round "2"]
[White "HouseOfDurin"]
[Black "2nd_life"]
[Result "0-1"]
[WhiteElo "2148"]
[BlackElo "2415"]
[TimeControl "180+1"]
[EndTime "10:16:48 PDT"]
[Termination "2nd_life won by resignation"]

1. d4 {[%clk 0:03:00.9]} 1... Nf6 {[%clk 0:02:59.4]} 2. Bg5 {[%clk 0:03:01.4]}
2... e6 {[%clk 0:02:57.7]} 3. e4 {[%clk 0:03:00.8]} 3... h6 {[%clk 0:02:57.2]}
4. Bxf6 {[%clk 0:02:59.4]} 4... Qxf6 {[%clk 0:02:58.1]} 5. e5 {[%clk 0:02:59.8]}
5... Qd8 {[%clk 0:02:57.8]} 6. f4 {[%clk 0:03:00.3]} 6... d6 {[%clk 0:02:53.2]}
7. Nf3 {[%clk 0:02:59]} 7... c5 {[%clk 0:02:50.8]} 8. c3 {[%clk 0:02:58.7]} 8...
Nc6 {[%clk 0:02:49]} 9. Bb5 {[%clk 0:02:58.1]} 9... Bd7 {[%clk 0:02:44.1]} 10.
dxc5 {[%clk 0:02:57.3]} 10... dxe5 {[%clk 0:02:41]} 11. Bxc6 {[%clk 0:02:46.7]}
11... Bxc6 {[%clk 0:02:36.9]} 12. Qxd8+ {[%clk 0:02:46]} 12... Rxd8 {[%clk
0:02:36.1]} 13. fxe5 {[%clk 0:02:45.5]} 13... Bxc5 {[%clk 0:02:33.1]} 14. Nbd2
{[%clk 0:02:44.4]} 14... Ke7 {[%clk 0:02:27.8]} 15. O-O-O {[%clk 0:02:43.8]}
15... Be3 {[%clk 0:02:22.4]} 16. Kc2 {[%clk 0:02:41.6]} 16... Rd7 {[%clk
0:02:17.9]} 17. Rhe1 {[%clk 0:02:40.1]} 17... Bf2 {[%clk 0:02:11.5]} 18. Re2
{[%clk 0:02:38.9]} 18... Bb6 {[%clk 0:02:08.2]} 19. Ne4 {[%clk 0:02:18.3]} 19...
Rxd1 {[%clk 0:02:04.2]} 20. Kxd1 {[%clk 0:02:17.5]} 20... Rd8+ {[%clk
0:02:04.7]} 21. Nfd2 {[%clk 0:02:09.9]} 21... Bb5 {[%clk 0:02:00]} 22. c4 {[%clk
0:02:07.4]} 22... Bxc4 {[%clk 0:01:57.9]} 23. Re1 {[%clk 0:01:58.9]} 23... Bxa2
{[%clk 0:01:49.5]} 24. Kc2 {[%clk 0:01:31.4]} 24... Rc8+ {[%clk 0:01:24.5]} 25.
Kd3 {[%clk 0:01:30.6]} 25... Bd5 {[%clk 0:01:22.5]} 26. g3 {[%clk 0:01:23.7]}
26... Ba5 {[%clk 0:01:19.6]} 27. Nd6 {[%clk 0:01:16.2]} 27... Rd8 {[%clk
0:01:14.8]} 28. Ra1 {[%clk 0:01:07.1]} 28... Bxd2 {[%clk 0:01:10.1]} 29. Kxd2
{[%clk 0:01:08]} 29... a6 {[%clk 0:01:09.9]} 30. Rc1 {[%clk 0:01:02.1]} 30... f6
{[%clk 0:01:09.3]} 31. Rc7+ {[%clk 0:01:01.4]} 31... Rd7 {[%clk 0:01:09.2]} 32.
Rxd7+ {[%clk 0:00:59.3]} 32... Kxd7 {[%clk 0:01:10.1]} 33. exf6 {[%clk 0:00:59]}
33... Kxd6 {[%clk 0:01:08.1]} 34. fxg7 {[%clk 0:00:58.3]} 34... e5 {[%clk
0:01:07.8]} 35. Ke3 {[%clk 0:00:57.8]} 35... Ke7 {[%clk 0:01:07.5]} 36. h4
{[%clk 0:00:57]} 36... Kf7 {[%clk 0:01:07.4]} 37. g4 {[%clk 0:00:57.7]} 37...
Kxg7 {[%clk 0:01:07.6]} 38. g5 {[%clk 0:00:58.6]} 38... hxg5 {[%clk 0:01:07.8]}
39. hxg5 {[%clk 0:00:59.5]} 39... Kg6 {[%clk 0:01:08.3]} 0-1

[Event "*** Titled Tuesday Blitz"]
[Site "Chess.com"]
[Date "2021.04.06"]
[Round "2"]
[White "kuli4ik"]
[Black "kleopl"]
[Result "1-0"]
[WhiteElo "2868"]
[BlackElo "2550"]
[TimeControl "180+1"]
[EndTime "10:16:50 PDT"]
[Termination "kuli4ik won by resignation"]

1. Nf3 {[%clk 0:03:00.9]} 1... f5 {[%clk 0:02:57.3]} 2. d3 {[%clk 0:03:01.1]}
2... Nf6 {[%clk 0:02:57.5]} 3. e4 {[%clk 0:03:00.9]} 3... fxe4 {[%clk
0:02:56.9]} 4. dxe4 {[%clk 0:03:01.8]} 4... Nxe4 {[%clk 0:02:52.6]} 5. Bd3
{[%clk 0:03:01.3]} 5... Nf6 {[%clk 0:02:49.4]} 6. Ng5 {[%clk 0:02:58.5]} 6... d6
{[%clk 0:02:38.8]} 7. Bxh7 {[%clk 0:02:47.4]} 7... Nxh7 {[%clk 0:02:16.4]} 8.
Qh5+ {[%clk 0:02:46.2]} 8... Kd7 {[%clk 0:02:16.2]} 9. Nxh7 {[%clk 0:02:28.1]}
9... c6 {[%clk 0:02:06.8]} 10. Nf6+ {[%clk 0:02:22]} 10... exf6 {[%clk
0:02:04.8]} 11. Qxh8 {[%clk 0:02:21.5]} 11... d5 {[%clk 0:02:03.6]} 12. O-O
{[%clk 0:02:16.2]} 12... Na6 {[%clk 0:01:55.4]} 13. Bf4 {[%clk 0:02:13.7]} 13...
Nc5 {[%clk 0:01:52.9]} 14. Re1 {[%clk 0:02:08.7]} 14... Ne6 {[%clk 0:01:47.1]}
15. Qh3 {[%clk 0:02:05.8]} 15... Qe7 {[%clk 0:01:45.8]} 16. Nc3 {[%clk
0:01:57.8]} 16... Kd8 {[%clk 0:01:33]} 17. Bg3 {[%clk 0:01:53.9]} 17... Ng5
{[%clk 0:01:25.7]} 18. Qh8 {[%clk 0:01:49.1]} 18... Qc5 {[%clk 0:01:14.1]} 19.
h4 {[%clk 0:01:38.6]} 19... Nf7 {[%clk 0:01:09.5]} 20. Qh5 {[%clk 0:01:38.4]}
20... Nd6 {[%clk 0:01:00.1]} 21. Rad1 {[%clk 0:01:33.5]} 21... Bd7 {[%clk
0:00:56.8]} 22. Nxd5 {[%clk 0:01:21.2]} 22... cxd5 {[%clk 0:00:39.8]} 23. Rxd5
{[%clk 0:01:20]} 23... Qc6 {[%clk 0:00:40.2]} 24. Bxd6 {[%clk 0:01:11.8]} 24...
Bxd6 {[%clk 0:00:39.6]} 25. Red1 {[%clk 0:01:12.1]} 25... Kc7 {[%clk 0:00:35.9]}
26. Rxd6 {[%clk 0:01:11.9]} 26... Qxd6 {[%clk 0:00:36.8]} 27. Rxd6 {[%clk
0:01:12]} 27... Kxd6 {[%clk 0:00:37.7]} 28. Qf7 {[%clk 0:01:08.7]} 1-0

[Event "*** Titled Tuesday Blitz"]
[Site "Chess.com"]
[Date "2021.04.06"]
[Round "2"]
[White "djano"]
[Black "exoticprincess"]
[Result "0-1"]
[WhiteElo "2476"]
[BlackElo "2927"]
[TimeControl "180+1"]
[EndTime "10:16:51 PDT"]
[Termination "exoticprincess won by resignation"]

1. e4 {[%clk 0:03:00.9]} 1... c6 {[%clk 0:02:40.7]} 2. d4 {[%clk 0:02:58]} 2...
d5 {[%clk 0:02:41.6]} 3. exd5 {[%clk 0:02:57.7]} 3... cxd5 {[%clk 0:02:41.6]} 4.
Bd3 {[%clk 0:02:57.6]} 4... Nc6 {[%clk 0:02:41.8]} 5. c3 {[%clk 0:02:57.8]} 5...
Nf6 {[%clk 0:02:42.7]} 6. Bf4 {[%clk 0:02:57.1]} 6... Bg4 {[%clk 0:02:42.9]} 7.
Qb3 {[%clk 0:02:56.1]} 7... Qc8 {[%clk 0:02:43.4]} 8. Nd2 {[%clk 0:02:53]} 8...
e6 {[%clk 0:02:43.6]} 9. Ngf3 {[%clk 0:02:53.2]} 9... Bh5 {[%clk 0:02:43.4]} 10.
O-O {[%clk 0:02:52.7]} 10... Be7 {[%clk 0:02:42.1]} 11. Rae1 {[%clk 0:02:51.4]}
11... Bg6 {[%clk 0:02:40.3]} 12. Bxg6 {[%clk 0:02:36.3]} 12... hxg6 {[%clk
0:02:41.2]} 13. h3 {[%clk 0:02:36.5]} 13... O-O {[%clk 0:02:40.7]} 14. Ne5
{[%clk 0:02:33.7]} 14... Nxe5 {[%clk 0:02:39.6]} 15. Bxe5 {[%clk 0:02:32.3]}
15... Nd7 {[%clk 0:02:40.5]} 16. Bh2 {[%clk 0:02:26.7]} 16... Qc6 {[%clk
0:02:40.4]} 17. f4 {[%clk 0:02:19.2]} 17... b5 {[%clk 0:02:22.6]} 18. Nf3 {[%clk
0:02:16.8]} 18... a5 {[%clk 0:02:19.9]} 19. Ne5 {[%clk 0:02:13.4]} 19... Nxe5
{[%clk 0:02:19]} 20. fxe5 {[%clk 0:02:14.3]} 20... b4 {[%clk 0:02:17.6]} 21. Rf3
{[%clk 0:02:01.2]} 21... a4 {[%clk 0:02:14.2]} 22. Qc2 {[%clk 0:01:56.5]} 22...
a3 {[%clk 0:02:10.3]} 23. b3 {[%clk 0:01:32.9]} 23... Rac8 {[%clk 0:02:08.7]}
24. Rc1 {[%clk 0:01:29.9]} 24... Bg5 {[%clk 0:01:59.4]} 25. Bf4 {[%clk
0:01:25.1]} 25... Bxf4 {[%clk 0:01:59.5]} 26. Rxf4 {[%clk 0:01:26]} 26... Qxc3
{[%clk 0:01:59.2]} 27. Qxc3 {[%clk 0:01:17.2]} 27... Rxc3 {[%clk 0:02:00.1]} 28.
Rxc3 {[%clk 0:01:10.2]} 28... bxc3 {[%clk 0:02:01]} 29. Rf2 {[%clk 0:01:10.5]}
29... f6 {[%clk 0:01:49]} 30. exf6 {[%clk 0:01:00.4]} 30... e5 {[%clk 0:01:45]}
31. dxe5 {[%clk 0:00:51.6]} 31... d4 {[%clk 0:01:44.8]} 32. Kf1 {[%clk
0:00:45.3]} 32... Rc8 {[%clk 0:01:24.9]} 33. e6 {[%clk 0:00:37]} 33... c2 {[%clk
0:01:17.2]} 0-1